bitfinex-derivatives/quotes_SOLF0:USTF0_20250808
["timestamp","ask_amount","ask_price","bid_price","bid_amount"]
[1754641324964,0.03859755,176.72,176.69,3.01]
[1754641325564,3.16014162,176.71,176.69,3.01]
[1754641326169,3.16014162,176.71,176.64,3.16014162]
[1754641326469,3.16014162,176.71,176.65,3.01]
[1754641326676,3.16014162,176.71,176.67,5.659]
[1754641326875,3.16014162,176.71,176.68,3.01]
[1754641327069,0.03859755,176.72,176.68,3.01]
[1754641327270,3.19873917,176.72,176.68,3.01]
[1754641327467,3.19873917,176.72,176.69,3.01]
[1754641328474,0.03859755,176.72,176.69,8.6684]
[1754641328670,0.03859755,176.72,176.64,3.16014162]
[1754641328671,0.03859755,176.72,176.7,3.01]
[1754641330074,0.03859755,176.72,176.71,3.01]
[1754641332575,15.80867696,176.79,176.71,3.01]
[1754641332775,3.16014162,176.76,176.71,3.01]
[1754641332976,3.20014162,176.74,176.71,3.01]
[1754641333974,3.16014162,176.74,176.71,3.05016359]
[1754641334171,3.16014162,176.74,176.72,3.01]
[1754641334375,3.20014162,176.74,176.72,3.01]
[1754641335881,3.20014162,176.74,176.73,3.01]
[1754641336078,3.16014162,176.74,176.73,3.01]
[1754641336472,15.80867696,176.78,176.73,3.01]
[1754641336689,3.16014162,176.77,176.74,3.01]
[1754641337478,3.16014162,176.77,176.74,3.04641421]
[1754641337689,18.96881858,176.81,176.79,5.6554]
[1754641337982,3.16014162,176.83,176.8,3.01]
[1754641338176,3.16014162,176.81,176.73,3.01]
[1754641338377,3.16014162,176.79,176.73,3.01]
[1754641338675,3.16014162,176.79,176.75,0.04321692]
[1754641338875,15.80867696,176.83,176.77,3.01]
[1754641339081,3.16014162,176.77,176.75,0.04321692]
[1754641339280,3.20014162,176.77,176.75,0.04321692]
[1754641339581,0.04,176.76,176.75,0.04321692]
[1754641340083,3.16014162,176.77,176.75,0.04321692]
[1754641340481,15.80867696,176.82,176.75,3.05321692]
[1754641340679,3.16014162,176.82,176.75,3.05321692]
[1754641341181,3.16014162,176.82,176.77,3.01]
[1754641341577,3.20014162,176.82,176.77,3.01]
[1754641341876,3.16014162,176.81,176.77,3.01]
[1754641343476,3.16014162,176.81,176.77,5.656]
[1754641343685,3.16014162,176.83,176.78,3.01]
[1754641344084,3.20014162,176.83,176.78,3.01]
[1754641344384,3.16014162,176.83,176.79,0.04205582]
[1754641344585,3.16014162,176.83,176.8,3.01]
[1754641344780,18.96881858,176.85,176.79,0.04205582]
[1754641344984,18.96881858,176.86,176.79,0.04205582]
[1754641346687,18.96881858,176.86,176.8,3.01]
[1754641347077,18.96881858,176.86,176.8,8.6649]
[1754641347283,2.31,176.85,176.81,3.01]
[1754641348695,18.11867696,176.85,176.81,3.01]
[1754641348994,3.16014162,176.84,176.79,0.04205582]
[1754641349199,2.31,176.83,176.82,3.01]
[1754641349397,3.16014162,176.84,176.82,3.01]
[1754641349696,5.47014162,176.84,176.82,3.01]
[1754641350092,5.47014162,176.84,176.83,3.01]
[1754641352397,3.16014162,176.84,176.83,3.01]
[1754641352787,3.16014162,176.84,176.83,0.76104887]
[1754641352987,6.17014162,176.84,176.83,0.76104887]
[1754641353303,3.16014162,176.84,176.83,0.76104887]
[1754641354386,3.16014162,176.86,176.83,0.76104887]
[1754641354591,15.80867696,176.87,176.83,0.76104887]
[1754641354801,18.93867696,176.87,176.83,0.76104887]
[1754641355300,18.93867696,176.87,176.83,0.79723056]
[1754641355692,3.13,176.86,176.83,0.79723056]
[1754641356399,3.13,176.85,176.84,3.27]
[1754641356703,3.13,176.87,176.83,0.03618169]
[1754641356890,3.13,176.86,176.85,3.27]
[1754641357601,6.29014162,176.86,176.85,3.27]
[1754641358088,3.13,176.86,176.85,3.27]
[1754641358291,6.29014162,176.86,176.85,3.27]
[1754641358901,3.13,176.86,176.85,3.27]
[1754641359096,9.12065867,176.89,176.84,6.43014162]
[1754641359397,31.55210742,176.99,176.89,3.27]
[1754641359398,15.80867696,176.96,176.89,3.27]
[1754641359702,6.29014162,176.97,176.91,3.27]
[1754641360095,6.29014162,176.97,176.92,0.04159398]
[1754641360396,3.13,176.95,176.94,3.27]
[1754641361390,3.16014162,176.97,176.94,3.27]
[1754641361595,3.13,176.96,176.95,3.27]
[1754641362497,107.33,176.98,176.95,3.27]
[1754641362698,3.13,176.97,176.96,3.27]
[1754641363300,104.2,176.98,176.96,3.27]
[1754641363501,3.13,176.98,176.97,3.27]
[1754641363808,104.28,176.98,176.97,3.27]
[1754641364598,107.45,177.0,176.97,3.27]
[1754641364802,3.13,176.99,176.97,3.27]
[1754641365200,3.13,176.99,176.98,3.27]
[1754641365701,3.13,177.0,176.97,3.27]
[1754641365900,107.43,177.0,176.97,3.27]
[1754641366502,104.3,177.0,176.96,0.04138159]
[1754641366711,3.16014162,176.99,176.96,3.31138159]
[1754641366905,3.13,176.98,176.96,0.04138159]
[1754641367101,3.13,176.97,176.96,0.04138159]
[1754641367310,3.13,176.97,176.96,3.31138159]
[1754641370516,6.29014162,176.99,176.96,3.31138159]
[1754641370808,3.13,177.01,176.96,6.47152321]
[1754641371005,104.28,177.0,176.97,3.27]
[1754641371405,3.13,176.99,176.98,3.27]
[1754641371803,104.28,177.0,176.98,3.27]
[1754641373012,3.13,176.99,176.96,0.04138159]
[1754641373207,6.29014162,176.97,176.96,0.04138159]
[1754641376313,3.13,176.96,176.88,3.27]
[1754641376607,6.29014162,176.94,176.88,3.27]
[1754641376807,6.29014162,176.94,176.88,5.6525]
[1754641377007,3.13,176.93,176.89,3.27]
[1754641378717,6.29014162,176.92,176.85,3.27]
[1754641378921,3.16014162,176.92,176.85,3.27]
[1754641379115,3.13,176.91,176.85,3.27]
[1754641379616,3.13,176.91,176.87,3.27]
[1754641380312,3.13,176.91,176.87,8.9228]
[1754641380514,3.13,176.91,176.88,3.27]
[1754641382812,3.16014162,176.92,176.85,5.6534]
[1754641383114,3.16014162,176.92,176.82,3.16014162]
[1754641383115,3.13,176.89,176.86,3.27]
[1754641384110,3.16014162,176.9,176.86,3.27]
[1754641384314,6.21014162,176.9,176.86,3.27]
[1754641385218,3.05,176.89,176.86,3.27]
[1754641385822,3.16014162,176.9,176.84,5.6537]
[1754641386017,3.05,176.89,176.85,3.05]
[1754641386321,6.21014162,176.9,176.82,3.05]
[1754641386721,3.05,176.89,176.82,3.05]
[1754641386915,3.16014162,176.9,176.82,3.16014162]
[1754641387121,3.16014162,176.9,176.78,339.3]
[1754641387122,3.16014162,176.92,176.84,3.16014162]
[1754641387321,3.16014162,176.92,176.87,5.6526]
[1754641387530,3.16014162,176.92,176.88,3.05]
[1754641388118,6.21014162,176.92,176.88,3.05]
[1754641388626,3.05,176.91,176.85,3.05]
[1754641388922,3.05,176.89,176.83,3.05]
[1754641389118,3.16014162,176.88,176.83,3.05]
[1754641389323,3.16014162,176.88,176.84,3.05]
[1754641389524,3.05,176.87,176.84,3.05]
[1754641390621,3.16014162,176.88,176.84,5.6537]
[1754641390926,6.21014162,176.88,176.85,3.05]
[1754641391228,3.05,176.88,176.85,3.05]
[1754641391425,3.05,176.88,176.86,3.05]
[1754641391628,6.21014162,176.87,176.81,3.05]
[1754641391827,3.16014162,176.94,176.81,3.05]
[1754641391828,6.21014162,176.85,176.81,3.05]
[1754641392225,6.21014162,176.85,176.81,5.6546]
[1754641392522,6.21014162,176.85,176.82,3.05]
[1754641392727,6.21014162,176.85,176.79,3.05]
[1754641393831,3.16014162,176.87,176.8,3.05]
[1754641394128,6.21014162,176.87,176.81,3.05]
[1754641395430,3.16014162,176.87,176.81,3.05]
[1754641395727,3.05,176.86,176.81,3.05]
[1754641395921,3.05,176.85,176.81,3.05]
[1754641396827,3.05,176.84,176.81,3.05]
[1754641398628,3.05,176.83,176.79,3.05]
[1754641398931,3.16014162,176.84,176.77,3.05]
[1754641398932,3.05,176.82,176.77,3.05]
[1754641399135,3.05,176.83,176.77,3.05]
[1754641400829,3.05,176.83,176.78,3.05]
[1754641402331,3.05,176.82,176.78,3.05]
[1754641402832,6.21014162,176.84,176.78,3.05]
[1754641403330,6.21014162,176.84,176.79,3.05]
[1754641403834,3.05,176.83,176.79,3.05]
[1754641404226,3.16014162,176.84,176.79,3.05]
[1754641404427,3.05,176.82,176.79,3.05]
[1754641405432,3.05,176.87,176.8,3.16014162]
[1754641405731,3.05,176.87,176.81,3.05]
[1754641407129,3.16014162,176.88,176.82,5.6544]
[1754641407331,6.21014162,176.88,176.83,3.05]
[1754641407523,3.05,176.87,176.83,3.05]
[1754641408122,3.05,176.89,176.83,5.6541]
[1754641408325,3.05,176.88,176.84,3.05]
[1754641408925,3.05,176.89,176.84,3.05]
[1754641409130,3.05,176.89,176.83,3.05]
[1754641415530,3.05,176.89,176.83,8.7041]
[1754641415736,3.05,176.89,176.84,2.99]
[1754641416038,3.16014162,176.9,176.84,2.99]
[1754641416434,3.19,176.88,176.84,2.99]
[1754641417133,3.19,176.87,176.84,2.99]
[1754641417534,3.19,176.9,176.84,2.99]
[1754641420343,18.99867696,176.9,176.84,2.99]
[1754641420546,3.19,176.88,176.85,2.99]
[1754641420844,3.16014162,176.89,176.83,2.99]
[1754641421044,3.19,176.87,176.83,2.99]
[1754641421436,3.19,176.87,176.82,8.81444162]
[1754641421437,3.19,176.88,176.77,2.99]
[1754641421644,3.19,176.86,176.79,2.99]
[1754641423143,3.19,176.86,176.81,2.99]
[1754641423947,32.86840389,176.91,176.86,2.99]
[1754641423948,15.80867696,176.91,176.86,2.99]
[1754641424142,15.80867696,176.94,176.91,2.99]
[1754641424444,15.80867696,176.96,176.91,2.99]
[1754641424641,15.80867696,176.95,176.88,3.16014162]
[1754641424944,3.19,176.94,176.93,2.99]
[1754641425251,3.19,176.94,176.93,0.73994989]
[1754641425847,3.19,176.95,176.9,3.16014162]
[1754641426240,3.19,176.94,176.9,3.16014162]
[1754641427147,3.19,176.94,176.91,2.99]
[1754641428347,3.19,176.93,176.92,2.99]
[1754641428536,3.19,176.93,176.9,2.99]
[1754641429350,3.19,176.93,176.91,2.99]
[1754641429647,3.19,176.92,176.91,2.99]
[1754641430147,18.96881858,176.96,176.91,2.99]
[1754641430347,3.19,176.95,176.91,2.99]
[1754641430542,3.19,176.94,176.91,2.99]
[1754641430941,3.19,176.93,176.92,2.99]
[1754641433446,3.19,176.93,176.89,3.16014162]
[1754641433651,3.19,176.93,176.9,2.99]
[1754641433849,3.19,176.93,176.91,2.99]
[1754641434050,3.19,176.92,176.91,2.99]
[1754641439954,3.19,176.93,176.88,2.99]
[1754641440146,3.19,176.89,176.83,2.99]
[1754641440853,3.19,176.89,176.84,2.99]
[1754641441656,3.19,176.88,176.85,2.99]
[1754641442256,3.19,176.88,176.85,5.6534]
[1754641442455,3.19,176.88,176.86,2.99]
[1754641443461,3.16014162,176.88,176.81,13.58]
[1754641443760,3.19,176.87,176.82,2.99]
[1754641443961,3.19,176.87,176.83,3.1]
[1754641444259,3.19,176.87,176.84,3.1]
[1754641444659,3.3,176.86,176.85,3.1]
[1754641446154,3.16014162,176.88,176.83,5.6539]
[1754641446359,15.80867696,176.92,176.83,5.6539]
[1754641446360,6.46014162,176.9,176.85,3.1]
[1754641446559,3.3,176.89,176.85,3.1]
[1754641446760,3.16014162,176.91,176.85,3.1]
[1754641446961,3.16014162,176.91,176.86,3.1]
[1754641446962,3.3,176.9,176.86,3.1]
[1754641447354,3.3,176.9,176.87,3.1]
[1754641448357,3.3,176.9,176.84,3.1]
[1754641448955,3.3,176.9,176.85,3.1]
[1754641450159,3.16014162,176.89,176.86,3.1]
[1754641450355,3.3,176.88,176.86,3.1]
[1754641451058,3.3,176.88,176.85,3.1]
[1754641451558,3.16014162,176.89,176.85,3.1]
[1754641451751,3.3,176.87,176.85,3.1]
[1754641451951,3.3,176.87,176.86,3.1]
[1754641455362,3.3,176.87,176.82,8.81444162]
[1754641455565,3.3,176.87,176.83,3.1]
[1754641456768,3.3,176.87,176.84,3.1]
[1754641457462,3.3,176.86,176.84,3.1]
[1754641458968,3.16014162,176.87,176.81,5.6547]
[1754641458969,3.3,176.85,176.81,5.6547]
[1754641459568,3.16014162,176.87,176.82,3.1]
[1754641459767,3.3,176.86,176.82,3.1]
[1754641460269,3.3,176.85,176.83,3.1]
[1754641460864,3.3,176.86,176.83,3.1]
[1754641461562,3.16014162,176.87,176.84,3.1]
[1754641461757,6.46014162,176.89,176.84,3.1]
[1754641461958,3.3,176.88,176.81,3.1]
[1754641462166,3.3,176.88,176.83,3.1]
[1754641462761,3.3,176.88,176.77,12.11]
[1754641462762,3.16014162,176.85,176.79,3.1]
[1754641463068,3.16014162,176.81,176.78,3.1]
[1754641463268,3.3,176.8,176.78,3.1]
[1754641463569,3.3,176.79,176.78,3.1]
[1754641466872,3.16014162,176.83,176.78,3.1]
[1754641467068,3.3,176.8,176.78,3.1]
[1754641467370,3.3,176.82,176.76,3.1]
[1754641470569,3.16014162,176.81,176.76,3.1]
[1754641470772,3.3,176.8,176.76,3.1]
[1754641472770,3.3,176.8,176.77,3.1]
[1754641473273,3.3,176.8,176.78,3.1]
[1754641474375,3.1,176.79,176.74,8.81714162]
[1754641474772,3.1,176.79,176.75,3.05]
[1754641474978,3.16014162,176.81,176.75,3.05]
[1754641475180,3.1,176.78,176.75,3.05]
[1754641476076,3.16014162,176.77,176.71,13.64]
[1754641476269,3.1,176.72,176.71,13.64]
[1754641476475,3.1,176.72,176.64,484.42]
[1754641476670,3.1,176.7,176.65,6.21014162]
[1754641476873,3.1,176.7,176.65,3.16014162]
[1754641477181,3.1,176.72,176.68,3.05]
[1754641478476,3.1,176.71,176.68,3.05]
[1754641478980,3.1,176.72,176.68,3.05]
[1754641479888,3.1,176.71,176.68,3.05]
[1754641481989,6.26014162,176.73,176.68,3.05]
[1754641482194,3.1,176.72,176.68,3.05]
[1754641482586,3.1,176.71,176.68,3.05]
[1754641482891,3.1,176.72,176.67,104.02]
[1754641483192,3.1,176.72,176.69,3.05]
[1754641483987,3.1,176.72,176.67,104.04]
[1754641484289,3.1,176.72,176.7,3.05]
[1754641485693,3.1,176.71,176.67,104.04]
[1754641486091,3.1,176.71,176.68,3.05]
[1754641486789,3.1,176.7,176.68,3.05]
[1754641488987,3.1,176.69,176.67,104.04]
[1754641489384,8.81724162,176.74,176.66,5.6595]
[1754641489588,3.1,176.73,176.67,107.09]
[1754641489790,3.1,176.73,176.68,3.05]
[1754641490590,3.1,176.73,176.66,5.6595]
[1754641490791,3.1,176.73,176.7,3.05]
[1754641491893,3.1,176.73,176.67,104.04]
[1754641491894,3.1,176.72,176.67,104.04]
[1754641492095,3.1,176.71,176.68,3.05]
[1754641492390,3.1,176.73,176.68,3.05]
[1754641492596,3.1,176.75,176.7,3.05]
[1754641492793,3.1,176.74,176.7,3.05]
[1754641493190,3.1,176.73,176.7,3.05]
[1754641493586,3.1,176.72,176.7,3.05]
[1754641493997,3.1,176.73,176.7,3.05]
[1754641494196,3.1,176.72,176.7,3.05]
[1754641494399,3.1,176.72,176.71,3.05]
[1754641494898,3.1,176.72,176.68,3.16014162]
[1754641495199,3.1,176.72,176.7,3.05]
[1754641496198,3.1,176.71,176.7,3.05]
[1754641497302,3.1,176.71,176.67,107.09]
[1754641497500,3.1,176.71,176.68,3.05]
[1754641498197,3.1,176.71,176.69,3.05]
[1754641499000,3.1,176.71,176.67,3.05]
[1754641500196,3.16014162,176.72,176.67,3.05]
[1754641500499,3.1,176.7,176.67,3.05]
[1754641500701,3.1,176.69,176.67,3.05]
[1754641501296,3.16014162,176.74,176.68,3.05]
[1754641501595,3.1,176.71,176.66,16.98]
[1754641501996,3.16014162,176.72,176.66,3.05]
[1754641502200,3.1,176.71,176.66,3.05]
[1754641503005,3.1,176.7,176.66,3.05]
[1754641503205,3.1,176.7,176.67,3.05]
[1754641504203,3.1,176.7,176.68,3.26]
[1754641505705,6.26014162,176.7,176.64,3.26]
[1754641505905,3.05,176.69,176.65,3.26]
[1754641506206,3.16014162,176.7,176.6,3.16014162]
[1754641506207,3.05,176.67,176.61,3.26]
[1754641506509,6.21014162,176.7,176.63,3.26]
[1754641506702,3.05,176.69,176.63,8.9202]
[1754641506902,3.05,176.68,176.64,3.26]
[1754641507102,3.05,176.71,176.66,6.42014162]
[1754641507299,3.05,176.72,176.69,3.26]
[1754641507706,3.05,176.71,176.69,3.26]
[1754641508211,3.05,176.73,176.69,3.26]
[1754641508512,3.05,176.77,176.71,3.26]
[1754641508809,3.05,176.74,176.72,3.26]
[1754641509109,5.6569,176.75,176.72,3.26]
[1754641509110,3.05,176.73,176.72,3.26]
[1754641512202,3.05,176.73,176.69,3.26]
[1754641512609,3.05,176.72,176.69,3.26]
[1754641514110,5.6573,176.73,176.69,3.26]
[1754641514309,3.16014162,176.72,176.67,3.26]
[1754641514510,3.05,176.71,176.67,3.26]
[1754641514711,3.05,176.69,176.67,3.26]
[1754641515901,3.05,176.7,176.67,3.26]
[1754641516510,3.05,176.69,176.67,3.26]
[1754641517010,3.05,176.68,176.67,3.26]
[1754641521414,3.05,176.69,176.64,3.26]
[1754641521612,3.05,176.68,176.64,3.26]
[1754641522012,3.05,176.68,176.61,14.96014162]
[1754641522218,3.05,176.66,176.62,3.26]
[1754641523119,5.66,176.65,176.62,3.26]
[1754641523318,3.16014162,176.63,176.61,5.03]
[1754641523510,3.16014162,176.62,176.56,3.26]
[1754641523714,3.16014162,176.6,176.52,8.82394162]
[1754641523918,3.16014162,176.6,176.52,3.16014162]
[1754641524120,3.16014162,176.6,176.57,3.26]
[1754641524715,5.662,176.59,176.57,3.26]
[1754641525017,3.16014162,176.6,176.57,3.26]
[1754641525219,5.6621,176.58,176.57,3.26]
[1754641525728,5.662,176.59,176.57,3.26]
[1754641526025,5.662,176.59,176.51,3.16014162]
[1754641526216,3.20070577,176.6,176.52,3.26]
[1754641526713,5.6627,176.57,176.5,104.04]
[1754641526914,3.16014162,176.58,176.53,3.26]
[1754641527114,3.16014162,176.56,176.55,3.26]
[1754641527312,8.82314162,176.56,176.55,3.26]
[1754641527717,3.16014162,176.56,176.55,3.26]
[1754641527915,5.6627,176.57,176.55,3.26]
[1754641528116,8.82284162,176.57,176.56,3.26]
[1754641528712,5.6628,176.56,176.55,3.26]
[1754641528916,3.16014162,176.57,176.47,5.6656]
[1754641529122,3.16014162,176.54,176.48,3.26]
[1754641529320,5.6639,176.53,176.48,3.26]
[1754641529517,3.16014162,176.58,176.48,3.26]
[1754641529518,3.16014162,176.5,176.48,3.26]
[1754641529827,3.16014162,176.56,176.48,3.26]
[1754641530014,3.16014162,176.54,176.48,3.26]
[1754641530318,3.16014162,176.5,176.48,3.26]
[1754641530518,3.16014162,176.52,176.48,3.26]
[1754641530725,3.16014162,176.54,176.48,3.26]
[1754641531423,3.16014162,176.5,176.48,3.26]
[1754641531624,3.16014162,176.5,176.49,3.26]
[1754641532020,3.16014162,176.5,176.43,3.26]
[1754641532221,3.16014162,176.58,176.39,3.16014162]
[1754641532422,3.16014162,176.47,176.4,3.26]
[1754641532921,3.16014162,176.43,176.33,3.26]
[1754641533123,3.16014162,176.41,176.33,3.26]
[1754641533324,3.16014162,176.41,176.35,5.6693]
[1754641533523,3.16014162,176.41,176.36,3.26]
[1754641533724,3.16014162,176.43,176.36,3.26]
[1754641534820,3.16014162,176.43,176.37,5.6688]
[1754641535120,3.16014162,176.43,176.38,3.29]
[1754641535718,8.82724162,176.43,176.38,3.29]
[1754641536122,3.16014162,176.43,176.35,5.6694]
[1754641536324,3.16014162,176.43,176.36,3.29]
[1754641536524,3.16014162,176.42,176.36,3.29]
[1754641536727,3.16014162,176.44,176.37,3.29]
[1754641537118,3.16014162,176.46,176.38,5.6685]
[1754641537317,8.82684162,176.44,176.39,3.29]
[1754641537722,3.16014162,176.44,176.39,3.29]
[1754641538328,0.03911994,176.43,176.39,3.29]
[1754641539824,5.70631994,176.43,176.37,3.29]
[1754641540026,0.03911994,176.43,176.37,3.29]
[1754641540419,3.16014162,176.42,176.37,3.29]
[1754641540827,3.16014162,176.4,176.34,3.29]
[1754641541425,5.6685,176.39,176.34,3.29]
[1754641541627,0.04132555,176.39,176.34,3.29]
[1754641542328,0.04132555,176.39,176.35,3.29]
[1754641542523,3.16014162,176.37,176.35,3.29]
[1754641542725,3.16014162,176.37,176.21,381.18]
[1754641542933,3.16014162,176.3,176.23,6.45014162]
[1754641543231,3.16014162,176.28,176.22,3.29]
[1754641543622,3.16014162,176.24,176.13,3.29]
[1754641543927,3.16014162,176.22,176.14,3.29]
[1754641544126,3.16014162,176.28,176.2,3.29]
[1754641544828,0.03895578,176.26,176.2,3.29]
[1754641545126,0.03895578,176.26,176.11,0.98832751]
[1754641545328,3.16014162,176.24,176.17,3.16014162]
[1754641545633,3.16014162,176.24,176.18,3.29]
[1754641545826,0.03959004,176.22,176.18,3.29]
[1754641546226,5.673,176.25,176.18,3.29]
[1754641546429,3.16014162,176.25,176.18,3.29]
[1754641546728,0.04356343,176.22,176.18,3.29]
[1754641547327,0.04356343,176.22,176.18,8.9647]
[1754641547531,0.04356343,176.22,176.19,3.29]
[1754641547830,0.04356343,176.22,176.19,8.9646]
[1754641548127,0.04356343,176.22,176.2,3.29]
[1754641548521,0.04356343,176.22,176.21,5.674]
[1754641548729,0.04356343,176.22,176.21,8.964]
[1754641549232,0.04356343,176.22,176.21,3.29]
[1754641551133,381.24,176.35,176.21,3.29]
[1754641551134,3.16014162,176.29,176.23,5.6731]
[1754641551443,381.24,176.35,176.24,3.29]
[1754641551744,5.6717,176.29,176.23,3.29]
[1754641551939,3.16014162,176.3,176.23,3.29]
[1754641552442,384.40014162,176.35,176.27,3.29]
[1754641552841,384.40014162,176.35,176.27,5.672]
[1754641553043,381.24,176.35,176.28,3.29]
[1754641553245,384.40014162,176.35,176.3,3.29]
[1754641553543,3.16014162,176.32,176.29,0.03826286]
[1754641553746,3.16014162,176.3,176.29,0.03826286]
[1754641553944,8.83124162,176.3,176.29,0.03826286]
[1754641554544,3.16014162,176.4,176.29,3.32826286]
[1754641554733,3.16014162,176.36,176.29,3.32826286]
[1754641554937,3.16014162,176.36,176.29,8.9612]
[1754641555140,3.16014162,176.36,176.3,3.29]
[1754641555342,3.16014162,176.36,176.31,0.04345809]
[1754641555539,3.16014162,176.36,176.32,3.29]
[1754641556346,8.82954162,176.36,176.32,3.29]
[1754641556549,3.16014162,176.36,176.32,3.29]
[1754641557544,3.16014162,176.36,176.33,3.29]
[1754641557849,3.16014162,176.36,176.31,0.04345809]
[1754641557850,8.82954162,176.36,176.31,0.04345809]
[1754641558147,3.16014162,176.36,176.31,0.04345809]
[1754641558343,3.16014162,176.36,176.33,3.29]
[1754641558743,5.6683,176.39,176.32,3.29]
[1754641559045,3.16014162,176.4,176.32,8.9603]
[1754641559349,8.82804162,176.4,176.33,3.29]
[1754641559543,8.82804162,176.4,176.34,0.04347534]
[1754641559749,3.16014162,176.4,176.35,3.29]
[1754641560147,18.61796546,176.41,176.35,3.29]
[1754641560647,3.16014162,176.37,176.34,0.04347534]
[1754641560844,3.16014162,176.35,176.34,0.04347534]
[1754641561647,3.16014162,176.37,176.34,3.33347534]
[1754641561944,8.82964162,176.35,176.34,0.04347534]
[1754641562146,3.16014162,176.35,176.34,0.04347534]
[1754641562350,3.16014162,176.37,176.34,0.04347534]
[1754641562545,3.16014162,176.37,176.35,3.29]
[1754641563054,3.16014162,176.39,176.35,3.29]
[1754641563246,18.61796546,176.41,176.35,3.29]
[1754641563443,3.16014162,176.37,176.34,0.04347534]
[1754641563746,3.16014162,176.35,176.34,0.04347534]
[1754641563947,3.16014162,176.38,176.34,3.35347534]
[1754641564249,15.45782384,176.41,176.34,3.35347534]
[1754641564449,18.61796546,176.41,176.34,3.35347534]
[1754641565353,24.28556546,176.41,176.34,3.35347534]
[1754641565750,18.61796546,176.41,176.34,3.35347534]
[1754641566056,3.16014162,176.39,176.35,3.31]
[1754641566355,18.61796546,176.41,176.35,3.31]
[1754641566552,3.16014162,176.39,176.35,3.31]
[1754641566752,3.16014162,176.39,176.36,3.31]
[1754641566947,3.16014162,176.39,176.35,3.31]
[1754641567352,18.61796546,176.41,176.35,3.31]
[1754641568055,3.16014162,176.39,176.35,3.31]
[1754641568255,3.16014162,176.39,176.36,3.31]
[1754641568458,3.16014162,176.39,176.37,3.31]
[1754641568756,3.16014162,176.39,176.35,3.31]
[1754641568955,3.16014162,176.39,176.34,0.04347534]
[1754641569153,3.16014162,176.39,176.35,3.31]
[1754641569356,3.16014162,176.37,176.34,0.04347534]
[1754641569759,15.45782384,176.41,176.36,3.31]
[1754641569952,3.16014162,176.38,176.34,3.35347534]
[1754641570354,15.45782384,176.41,176.34,3.35347534]
[1754641570555,18.61796546,176.41,176.34,3.35347534]
[1754641571860,24.28576546,176.41,176.34,3.35347534]
[1754641572361,18.61796546,176.41,176.34,3.35347534]
[1754641573059,3.16014162,176.39,176.34,3.35347534]
[1754641573259,3.16014162,176.39,176.35,3.31]
[1754641573856,18.61796546,176.41,176.35,3.31]
[1754641574256,24.28556546,176.41,176.35,3.31]
[1754641575865,18.61796546,176.41,176.35,3.31]
[1754641576662,15.45782384,176.41,176.35,3.31]
[1754641578268,15.45782384,176.41,176.36,3.31]
[1754641578858,15.45782384,176.41,176.36,8.9791]
[1754641579056,15.45782384,176.41,176.37,3.31]
[1754641579464,15.45782384,176.41,176.37,8.9786]
[1754641579769,15.45782384,176.41,176.35,3.16014162]
[1754641579962,18.61796546,176.41,176.34,0.04347534]